bitfinex-derivatives/quotes_SOLF0:USTF0_20250625
["timestamp","ask_amount","ask_price","bid_price","bid_amount"]
[1750884801528,6.9077,144.69,144.67,6.9084]
[1750884801728,6.9077,144.69,144.66,6.9089]
[1750884801931,38.71534483,144.71,144.64,4.8848]
[1750884802234,6.9073,144.7,144.64,4.8848]
[1750884802423,6.9073,144.7,144.67,6.9081]
[1750884803025,41.2469,144.71,144.65,4.37534483]
[1750884803531,41.2469,144.71,144.69,6.9076]
[1750884803930,34.34,144.71,144.69,6.9076]
[1750884804730,41.247,144.71,144.69,6.9076]
[1750884805232,34.34,144.71,144.69,6.9076]
[1750884805531,34.32,144.74,144.71,6.9063]
[1750884805826,11.81207132,144.73,144.67,4.37534483]
[1750884806128,4.90617132,144.73,144.69,6.9073]
[1750884806330,34.32,144.74,144.69,6.9073]
[1750884806529,4.90478638,144.73,144.69,6.9073]
[1750884806827,38.59449102,144.74,144.69,6.9073]
[1750884807031,6.9065,144.72,144.69,6.9073]
[1750884807329,34.32,144.74,144.68,6.9081]
[1750884807517,6.907,144.71,144.68,6.9081]
[1750884808430,6.9072,144.7,144.68,6.9081]
[1750884808724,4.37534483,144.69,144.63,34.34]
[1750884808919,4.37534483,144.69,144.58,13.8252]
[1750884808920,4.37534483,144.67,144.6,34.32]
[1750884809128,39.24200145,144.66,144.61,6.9112]
[1750884809426,6.9107,144.63,144.59,2.3385]
[1750884809622,6.9107,144.63,144.6,6.9116]
[1750884810218,6.9107,144.63,144.61,6.9113]
[1750884810428,6.9103,144.64,144.61,6.9113]
[1750884812828,34.32,144.66,144.61,6.9113]
[1750884812829,6.9107,144.63,144.61,6.9113]
[1750884813130,9.29745375,144.65,144.58,4.37534483]
[1750884813325,4.92210892,144.64,144.58,4.37534483]
[1750884813630,6.9113,144.62,144.59,6.9123]
[1750884815029,6.9107,144.63,144.57,45.36323221]
[1750884815835,6.9107,144.63,144.61,6.9114]
[1750884816138,6.9102,144.64,144.61,6.9114]
[1750884816332,34.32,144.66,144.62,6.9107]
[1750884816837,6.9098,144.65,144.62,6.9107]
[1750884820244,6.9098,144.65,144.63,6.9105]
[1750884821746,41.2292,144.66,144.63,6.9105]
[1750884822244,6.9098,144.65,144.62,6.9106]
[1750884822944,46.11106086,144.66,144.63,6.9105]
[1750884823238,41.2293,144.66,144.63,6.9105]
[1750884823636,34.32,144.66,144.59,2.4333]
[1750884823836,4.37534483,144.65,144.59,2.4333]
[1750884824040,9.25712221,144.65,144.57,49.73857704]
[1750884824339,4.88250979,144.64,144.57,41.15944483]
[1750884824732,6.78674483,144.65,144.57,41.15944483]
[1750884824928,6.78674483,144.65,144.59,6.9124]
[1750884824929,4.88260399,144.64,144.59,6.9124]
[1750884825128,2.4114,144.65,144.57,41.15944483]
[1750884825329,9.2677827,144.64,144.57,41.15944483]
[1750884825541,16.1781827,144.64,144.61,6.9113]
[1750884827845,11.28574483,144.64,144.61,6.9113]
[1750884828047,6.9098,144.65,144.59,4.37534483]
[1750884828938,6.9098,144.65,144.63,6.9103]
[1750884830340,38.69534483,144.66,144.63,6.9103]
[1750884830341,45.60464483,144.66,144.63,6.9103]
[1750884830541,50.49272242,144.66,144.63,6.9103]
[1750884830739,45.60464483,144.66,144.63,6.9103]
[1750884831351,6.9096,144.65,144.63,6.9103]
[1750884831644,38.69534483,144.66,144.63,6.9103]
[1750884832646,45.60484483,144.66,144.63,6.9103]
[1750884833435,34.32,144.66,144.65,6.9095]
[1750884833741,34.32,144.66,144.6,4.37748514]
[1750884834139,41.2293,144.66,144.64,6.91]
[1750884836246,34.32,144.66,144.6,4.37748514]
[1750884836746,6.9099,144.65,144.62,6.9108]
[1750884836946,34.32,144.66,144.62,6.9108]
[1750884837149,39.19249875,144.66,144.62,6.9108]
[1750884837451,6.9101,144.64,144.62,6.9108]
[1750884837651,39.19249875,144.66,144.6,4.37748514]
[1750884837853,41.2293,144.66,144.6,4.37748514]
[1750884838351,41.2293,144.66,144.63,6.9102]
[1750884838553,6.9096,144.65,144.63,6.9102]
[1750884839753,34.32,144.66,144.6,4.37748514]
[1750884840253,41.2294,144.66,144.6,4.37748514]
[1750884840454,41.2294,144.66,144.63,6.91]
[1750884840852,41.2294,144.66,144.6,4.37748514]
[1750884841554,41.2294,144.66,144.64,6.9098]
[1750884842654,34.32,144.66,144.65,6.9095]
[1750884844160,34.32,144.66,144.64,6.9098]
[1750884844843,41.2292,144.66,144.64,6.9098]
[1750884847157,34.32,144.66,144.65,6.9095]
[1750884850354,11.28578514,144.68,144.66,6.9091]
[1750884851257,6.9083,144.68,144.66,6.9091]
[1750884851558,4.91968054,144.67,144.66,6.9091]
[1750884852058,6.9083,144.68,144.66,6.9091]
[1750884852557,6.9083,144.68,144.65,6.9094]
[1750884852853,4.91906318,144.67,144.61,49.66031082]
[1750884853061,4.26174478,144.68,144.61,49.66031082]
[1750884853360,11.82829369,144.67,144.61,49.66031082]
[1750884853659,4.92489869,144.66,144.61,49.66031082]
[1750884853959,6.9088,144.67,144.61,49.66031082]
[1750884854258,4.92478321,144.66,144.61,49.66031082]
[1750884854460,6.9088,144.67,144.61,49.66031082]
[1750884854658,4.91981118,144.66,144.64,6.9096]
[1750884854858,6.9088,144.67,144.64,6.9096]
[1750884855059,11.82891118,144.66,144.64,6.9096]
[1750884855258,6.9091,144.66,144.64,6.9096]
[1750884855563,9.18206665,144.65,144.58,15.27551082]
[1750884855765,16.09236665,144.64,144.58,15.27551082]
[1750884856058,4.92005643,144.63,144.61,6.9112]
[1750884856262,11.17243852,144.64,144.61,6.9112]
[1750884856464,4.92059235,144.63,144.61,6.9112]
[1750884856759,11.17243852,144.64,144.61,6.9112]
[1750884856959,11.83093082,144.63,144.61,6.9112]
[1750884857162,6.9105,144.63,144.61,6.9112]
[1750884858259,6.9111,144.62,144.6,6.9117]
[1750884858765,4.2614673,144.64,144.6,6.9117]
[1750884858961,11.83122408,144.63,144.6,6.9117]
[1750884859164,6.9108,144.63,144.6,6.9117]
[1750884859462,6.9106,144.63,144.6,6.9117]
[1750884859661,4.26098778,144.64,144.6,6.9117]
[1750884859962,4.90025685,144.63,144.6,6.9117]
[1750884860158,6.9106,144.63,144.6,6.9117]
[1750884860561,6.9106,144.63,144.57,45.40323221]
[1750884862263,6.9106,144.63,144.61,6.9111]
[1750884864364,6.9103,144.64,144.61,6.9111]
[1750884864556,4.89912479,144.63,144.61,6.9111]
[1750884864756,6.9103,144.64,144.61,6.9111]
[1750884864955,4.89912479,144.63,144.61,6.9111]
[1750884865156,6.9103,144.64,144.61,6.9111]
[1750884865356,4.8988101,144.63,144.61,6.9111]
[1750884865554,6.9103,144.64,144.61,6.9111]
[1750884865754,4.8988101,144.63,144.61,6.9111]
[1750884865961,6.9106,144.63,144.61,6.9111]
[1750884866160,38.73657861,144.65,144.61,6.9111]
[1750884866466,4.89869247,144.64,144.61,6.9111]
[1750884866768,4.89869247,144.63,144.61,6.9111]
[1750884866965,38.73657861,144.65,144.61,6.9111]
[1750884867168,4.89834474,144.64,144.61,6.9111]
[1750884867356,38.73657861,144.65,144.61,6.9111]
[1750884867666,4.89844201,144.64,144.61,6.9111]
[1750884867868,4.89844201,144.63,144.61,6.9111]
[1750884868069,38.73657861,144.65,144.61,6.9111]
[1750884868269,11.80835558,144.64,144.61,6.9111]
[1750884868470,4.89825558,144.63,144.61,6.9111]
[1750884868767,6.9101,144.64,144.61,6.9111]
[1750884868969,4.89788548,144.63,144.61,6.9111]
[1750884869168,6.9101,144.64,144.61,6.9111]
[1750884869470,4.89788548,144.63,144.61,6.9111]
[1750884869670,6.9101,144.64,144.61,6.9111]
[1750884869872,4.8979272,144.63,144.61,6.9111]
[1750884870067,6.9101,144.64,144.61,6.9111]
[1750884870268,4.8979912,144.63,144.61,6.9111]
[1750884870468,6.9101,144.64,144.61,6.9111]
[1750884870779,4.8979912,144.63,144.61,6.9111]
[1750884871073,6.9101,144.64,144.58,4.37657861]
[1750884871266,6.9101,144.64,144.58,12.95571082]
[1750884871773,6.9101,144.64,144.62,6.9107]
[1750884871973,41.2697,144.65,144.58,12.95571082]
[1750884872168,34.36,144.65,144.6,4.37657861]
[1750884872375,34.36,144.65,144.61,2.80175068]
[1750884872673,34.36,144.65,144.64,6.91]
[1750884872874,39.25535737,144.65,144.64,6.91]
[1750884873264,34.36,144.65,144.64,6.91]
[1750884873571,9.71055068,144.67,144.65,6.9095]
[1750884873762,4.89538911,144.66,144.65,6.9095]
[1750884874369,6.9088,144.67,144.65,6.9095]
[1750884875078,6.9088,144.67,144.64,6.9098]
[1750884875275,6.9088,144.67,144.61,12.95597871]
[1750884875471,45.51330835,144.68,144.61,47.31597871]
[1750884875682,4.8948389,144.67,144.61,47.31597871]
[1750884875978,45.51330835,144.68,144.61,47.31597871]
[1750884876274,4.89470347,144.67,144.61,47.31597871]
[1750884876474,45.51286255,144.68,144.65,6.9092]
[1750884876780,11.80334204,144.67,144.65,6.9092]
[1750884876971,38.60466255,144.68,144.64,6.9098]
[1750884877166,11.80806408,144.67,144.61,47.31597871]
[1750884877475,6.9088,144.67,144.61,47.31597871]
[1750884878180,6.9088,144.67,144.64,6.9097]
[1750884878376,6.9087,144.67,144.64,6.9097]
[1750884878771,6.9091,144.66,144.64,6.9097]
[1750884879783,6.9088,144.67,144.65,6.9095]
[1750884881485,6.9088,144.67,144.64,6.9098]
[1750884883390,6.9088,144.67,144.65,6.9095]
[1750884884593,45.52443101,144.68,144.65,6.9095]
[1750884884788,4.91269674,144.67,144.65,6.9095]
[1750884885096,41.2683,144.68,144.66,6.9091]
[1750884885291,4.91226808,144.67,144.66,6.9091]
[1750884885492,38.59919407,144.7,144.63,4.3768465]
[1750884885791,4.91122828,144.69,144.63,12.95597871]
[1750884885992,34.34,144.7,144.63,12.95597871]
[1750884886193,41.2474,144.7,144.68,6.9081]
[1750884893799,6.9076,144.69,144.67,6.9084]
[1750884894493,37.13979322,144.7,144.65,2.79979322]
[1750884894696,2.79979322,144.69,144.64,2.79979322]
[1750884895197,6.9086,144.67,144.65,6.9093]
[1750884895899,9.70809322,144.68,144.65,6.9093]
[1750884896091,6.9083,144.68,144.65,6.9093]
[1750884896286,9.70809322,144.68,144.65,6.9093]
[1750884897598,2.79979322,144.66,144.62,2.79979322]
[1750884898593,6.9098,144.65,144.62,9.71039322]
[1750884899393,6.9098,144.65,144.63,6.9105]
[1750884900305,41.2493,144.66,144.63,6.9105]
[1750884900507,34.34,144.66,144.6,4.3773329]
[1750884900808,4.92338328,144.67,144.62,4.3773329]
[1750884901006,6.9086,144.68,144.65,6.9093]
[1750884901206,6.9086,144.68,144.62,4.3773329]
[1750884901899,6.9086,144.68,144.66,6.909]
[1750884905101,34.34,144.69,144.66,6.909]
[1750884905102,41.2479,144.69,144.66,6.909]
[1750884905601,34.34,144.69,144.64,4.3773329]
[1750884906306,34.34,144.69,144.67,6.9082]
[1750884907411,6.9074,144.7,144.68,6.9081]
[1750884907614,6.907,144.71,144.68,6.9081]
[1750884907813,42.98034481,144.72,144.68,6.9081]
[1750884908113,4.91089264,144.71,144.68,6.9081]
[1750884908305,42.98034351,144.72,144.68,6.9081]
[1750884908510,4.91028112,144.71,144.68,6.9081]
[1750884909007,148.13942723,144.78,144.67,13.8172]
[1750884909207,9.17420602,144.77,144.67,13.24383026]
[1750884909509,4.91094507,144.76,144.7,4.37225669]
[1750884909710,4.91094507,144.75,144.71,4.37117476]
[1750884909915,4.26326095,144.77,144.71,4.37117476]
[1750884910209,4.91882748,144.76,144.73,6.9057]
[1750884910512,4.2630421,144.77,144.71,4.37117476]
[1750884910702,13.7961,144.9,144.75,4.37117476]
[1750884910910,4.37117476,144.85,144.77,4.37117476]
[1750884911106,43.69115727,144.84,144.77,4.37117476]
[1750884911302,9.19115727,144.83,144.77,4.37117476]
[1750884911515,4.91615616,144.82,144.76,4.37117476]
[1750884911714,4.27500111,144.83,144.75,38.87117476]
[1750884911715,6.79287476,144.83,144.75,38.87117476]
[1750884912015,4.91991807,144.83,144.79,6.9026]
[1750884912215,9.1960901,144.85,144.79,38.87117476]
[1750884912413,4.91991807,144.84,144.79,38.87117476]
[1750884912709,10.44618751,144.86,144.79,38.87117476]
[1750884913014,4.91991807,144.85,144.79,38.87117476]
[1750884913202,9.27277476,144.87,144.79,38.87117476]
[1750884913408,4.90727398,144.86,144.79,38.87117476]
[1750884913610,43.77844874,144.85,144.79,34.5]
[1750884913810,4.90727398,144.84,144.77,4.37117476]
[1750884914412,4.90727398,144.83,144.77,4.37117476]
[1750884914609,4.90727398,144.84,144.77,4.37117476]
[1750884914814,4.90727398,144.83,144.77,4.37117476]
[1750884915017,34.5,144.85,144.79,4.37117476]
[1750884915211,34.5,144.85,144.81,4.37117476]
[1750884915409,11.8009,144.87,144.81,4.37117476]
[1750884915811,4.95948902,144.88,144.83,4.37117476]
[1750884916010,34.48,144.91,144.85,4.37117476]
[1750884916220,34.48,144.91,144.82,34.48]
[1750884916221,4.37117476,144.9,144.83,6.69427476]
[1750884916409,6.8993,144.87,144.83,6.901]
[1750884916609,9.32923935,144.9,144.83,6.901]
[1750884917117,6.8997,144.86,144.83,6.901]
[1750884917420,34.48,144.91,144.83,4.37117476]
[1750884917917,34.48,144.91,144.85,6.8997]
[1750884918113,6.8981,144.9,144.83,4.37117476]
[1750884918307,6.8981,144.9,144.86,6.8995]
[1750884919014,4.37117476,144.9,144.82,4.37117476]
[1750884919819,4.37117476,144.88,144.8,38.85117476]
[1750884920021,4.37117476,144.86,144.8,34.48]
[1750884920222,38.85117476,144.86,144.8,34.48]
[1750884920612,6.9008,144.84,144.8,6.9022]
[1750884921014,6.9002,144.85,144.81,6.9016]
[1750884922518,34.48,144.86,144.83,4.36492369]
[1750884922725,34.46,144.89,144.83,4.36492369]
[1750884922925,41.3581,144.89,144.86,6.8994]
[1750884923415,34.46,144.89,144.86,6.8994]
[1750884923614,34.46,144.89,144.87,6.899]
[1750884924123,34.46,144.89,144.83,4.36492369]
[1750884924309,34.46,144.89,144.83,4.8388]
[1750884924509,34.46,144.89,144.83,9.20157602]
[1750884924722,41.3584,144.89,144.86,6.8993]
[1750884925522,4.95464885,144.94,144.87,4.36239531]
[1750884925822,34.46,144.97,144.85,34.46]
[1750884926129,41.3552,144.96,144.92,6.8965]
[1750884926319,41.3552,144.96,144.89,4.3596939]
[1750884926519,41.3552,144.96,144.93,6.8959]
[1750884926913,34.46,144.99,144.93,4.3596939]
[1750884927418,34.46,144.99,144.96,6.8947]
[1750884927814,41.3536,144.99,144.96,6.8947]
[1750884929123,41.3536,144.99,144.95,6.895]
[1750884929329,38.8196939,144.99,144.9,6.9216]
[1750884929525,38.8196939,144.99,144.9,11.2812939]
[1750884929723,6.8945,144.97,144.9,11.2812939]
[1750884929929,38.8196939,144.99,144.9,11.2812939]
[1750884930327,6.8945,144.97,144.93,6.8958]
[1750884930828,6.8945,144.97,144.9,11.2812939]
[1750884931032,6.8945,144.97,144.94,6.8957]
[1750884931434,34.46,144.99,144.92,4.3596939]
[1750884932527,41.3538,144.99,144.95,6.895]
[1750884933136,41.3538,144.99,144.96,6.8947]
[1750884933638,34.46,144.99,144.97,6.894]
[1750884934342,34.46,144.99,144.94,4.3596939]
[1750884935831,41.3535,144.99,144.96,6.8945]
[1750884937235,34.46,144.99,144.97,6.8943]
[1750884938940,34.46,144.99,144.98,6.8938]
[1750884940042,34.44,145.02,144.96,4.3596939]
[1750884940545,34.44,145.02,145.0,6.8926]
[1750884941243,34.44,145.02,145.01,6.8924]
[1750884942547,34.44,145.02,144.93,34.44]
[1750884942748,38.79685752,145.02,144.94,4.35685752]
[1750884943138,6.8927,145.01,144.98,6.8936]
[1750884943340,34.44,145.02,144.98,6.8936]
[1750884943737,2.4505,145.04,144.96,4.35685752]
[1750884943944,35.38,145.05,144.98,4.35685752]
[1750884944240,6.8913,145.04,145.01,6.8921]
[1750884945442,4.35436034,145.04,144.91,13.7938]
[1750884945750,4.35614665,145.04,144.95,4.35614665]
[1750884945951,39.73614665,145.05,144.97,4.35614665]
[1750884946249,6.8917,145.03,145.0,6.8925]
[1750884946447,44.68548386,145.05,145.0,6.8925]
[1750884946647,39.73614665,145.05,145.0,6.8925]
[1750884947052,6.892,145.02,144.99,6.8931]
[1750884947743,4.35614665,145.03,144.95,4.35614665]
[1750884947947,4.94933721,145.02,144.95,4.35614665]
[1750884948147,6.8936,144.99,144.96,6.8945]
[1750884948352,39.73614665,145.01,144.94,35.38]
[1750884948547,44.68548386,145.01,144.94,35.38]
[1750884948742,39.73614665,145.01,144.94,35.38]
[1750884948942,6.8937,144.99,144.96,6.8947]
[1750884949951,6.8942,144.98,144.9,602.7616]
[1750884950158,39.73756431,145.01,144.92,4.35756431]
[1750884950347,7.2345625,145.0,144.92,4.35756431]
[1750884950548,6.8944,144.97,144.94,6.8954]
[1750884950749,6.8944,144.97,144.92,4.35756431]
[1750884952759,6.8944,144.97,144.95,6.8952]
[1750884955361,6.8944,144.97,144.94,6.8955]
[1750884959752,6.8944,144.97,144.95,6.8952]
[1750884959956,6.8941,144.98,144.95,6.8952]
[1750884960154,5.01598575,144.97,144.95,6.8952]
[1750884960360,5.01598575,144.96,144.95,6.8952]
[1750884961170,6.8942,144.98,144.95,6.8952]
[1750884961358,5.0159774,144.97,144.95,6.8952]
[1750884961655,6.59121655,145.0,144.95,6.8952]
[1750884961855,5.01593987,144.99,144.95,6.8952]
[1750884962055,6.8945,144.97,144.94,6.8955]
[1750884962364,5.01692054,144.96,144.91,35.38]
[1750884962567,35.38,144.97,144.91,35.38]
[1750884962760,6.8953,144.95,144.92,6.8962]
[1750884963760,6.8957,144.94,144.92,6.8962]
[1750884963963,4.36030707,144.96,144.88,39.74030707]
[1750884964266,5.02098874,144.95,144.88,4.36030707]
[1750884964468,11.91708874,144.94,144.91,6.8969]
[1750884964657,6.8961,144.94,144.91,6.8969]
[1750884964860,5.02177629,144.93,144.91,6.8969]
[1750884965054,6.8961,144.94,144.91,6.8969]
[1750884965260,5.02814276,144.93,144.91,6.8969]
[1750884965461,6.8961,144.94,144.91,6.8969]
[1750884965760,8.71292497,144.96,144.9,6.8974]
[1750884965761,5.02814904,144.93,144.9,6.8974]
[1750884966053,6.8296179,144.95,144.9,6.8974]
[1750884966257,6.8964,144.93,144.9,6.8974]
[1750884966469,2.477,144.95,144.91,6.8971]
[1750884966671,5.02842083,144.94,144.91,6.8971]
[1750884966866,5.02842083,144.93,144.91,6.8971]
[1750884967169,5.03639268,144.92,144.91,6.8971]
[1750884967372,35.38,144.97,144.9,4.36030707]
[1750884967670,5.03544392,144.96,144.94,6.8955]
[1750884967972,35.38,144.97,144.94,6.8955]
[1750884968169,5.03526006,144.96,144.95,6.8952]
[1750884968472,35.38,144.97,144.95,6.8952]
[1750884969065,5.04162268,144.96,144.95,6.8952]
[1750884970463,35.38,144.97,144.95,6.8952]
[1750884970773,37.6128,145.0,144.92,4.36030707]
[1750884971064,37.6128,145.0,144.92,8.88850707]
[1750884971460,6.8934,144.99,144.96,6.8944]
[1750884972360,6.8934,144.99,144.97,6.8942]
[1750884972555,37.6128,145.0,144.92,8.88850707]
[1750884972758,134.92,145.06,144.92,4.5282]
[1750884972759,35.38,145.05,144.92,4.5282]
[1750884972974,5.6391041,145.04,144.99,6.8931]
[1750884973267,5.6391041,145.04,144.97,4.36030707]
[1750884973469,5.6391041,145.04,144.99,6.8933]
[1750884973667,5.6391041,145.04,144.97,4.36030707]
[1750884973859,6.8917,145.03,144.97,4.36030707]
[1750884974568,6.8919,145.02,144.99,6.893]
[1750884974764,5.6391041,145.04,144.97,4.36030707]
[1750884974970,35.38,145.05,145.01,6.892]
[1750884975170,42.2709,145.05,145.01,6.892]
[1750884975569,2.469,145.07,144.99,4.36030707]
[1750884975765,40.0381,145.08,145.01,4.36030707]
[1750884976068,5.63677357,145.07,145.01,4.36030707]
[1750884976270,37.7966,145.13,145.05,4.36030707]
[1750884976470,9.99133426,145.12,145.05,4.36030707]
[1750884976666,5.63102719,145.11,145.05,4.36030707]
[1750884976874,12.51892719,145.11,145.07,6.8892]
[1750884977071,5.63102719,145.12,145.05,4.36030707]
[1750884977270,5.63102719,145.11,145.05,4.36030707]
[1750884977477,5.63102719,145.12,145.05,4.36030707]
[1750884977874,6.8882,145.1,145.05,4.36030707]
[1750884978363,6.8878,145.11,145.07,6.8895]
[1750884978570,9.99133426,145.12,145.04,35.38]
[1750884978770,4.36030707,145.1,145.02,212.27414104]
[1750884979073,6.8898,145.07,145.02,4.36030707]
[1750884980174,6.8898,145.07,145.04,6.8907]
[1750884980672,35.38,145.09,145.02,4.36030707]
[1750884980873,40.0069,145.09,145.02,4.36030707]
[1750884981271,40.0069,145.09,145.03,6.8914]
[1750884982176,6.8903,145.06,145.03,6.8914]
[1750884982771,4.36030707,145.08,144.98,35.36]
[1750884982972,4.36030707,145.06,144.98,39.72030707]
[1750884983376,4.36030707,145.06,145.0,6.8925]
[1750884983577,35.36,145.05,144.98,39.72030707]
[1750884983877,4.36030707,145.04,144.98,42.2536]
[1750884984065,4.36030707,145.04,144.96,4.36030707]
[1750884984778,6.8917,145.03,144.99,6.893]
[1750884987279,6.8921,145.02,144.99,6.893]
[1750884987878,35.36,145.05,144.96,4.36030707]
[1750884988074,39.72030707,145.05,144.96,4.36030707]
[1750884988483,6.892,145.02,144.99,6.8931]
[1750884988874,39.72030707,145.05,144.96,4.36030707]
[1750884989075,6.8917,145.03,144.99,6.8929]
[1750884989885,6.892,145.02,144.99,6.8929]
[1750884990089,39.72030707,145.05,144.96,4.36030707]
[1750884990090,39.72030707,145.05,145.0,6.8929]
[1750884990388,6.892,145.02,144.96,4.36030707]
[1750884990788,6.892,145.02,144.99,6.893]
[1750884991583,6.8925,145.01,144.98,6.8936]
[1750884991885,6.8925,145.01,144.96,4.36030707]
[1750884991886,4.36030707,145.01,144.95,39.8917]
[1750884992181,6.8935,144.99,144.96,6.8945]
[1750884996685,4.36030707,144.99,144.93,4.36030707]
[1750884997189,4.36030707,144.99,144.92,35.36]
[1750884997378,4.36030707,144.99,144.94,6.8953]
[1750884997379,6.8944,144.97,144.94,6.8953]
[1750884998988,6.8941,144.98,144.95,6.8952]
[1750885001894,6.8943,144.97,144.94,6.8955]
[1750885002093,4.36030707,144.99,144.92,35.36]
[1750885002488,5.01454071,145.01,144.96,4.36030707]
[1750885002684,5.01454071,145.02,144.96,4.36030707]
[1750885002901,40.12,145.03,144.96,4.36030707]
[1750885003094,45.13331184,145.03,145.0,6.8927]
[1750885003391,40.12,145.03,145.0,6.8927]
[1750885003890,40.12,145.03,145.01,6.8923]
[1750885004085,2.4577,145.06,144.91,12.53454596]
[1750885004300,35.52,145.09,145.06,6.8897]
[1750885004493,40.1964,145.1,145.03,4.35383006]
[1750885004890,45.20113294,145.1,145.07,6.8891]
[1750885006598,40.1964,145.1,145.07,6.8891]
[1750885007099,52.08943294,145.1,145.06,6.8898]
[1750885007299,56.44092845,145.1,145.06,6.8898]
[1750885007600,51.43619551,145.1,145.06,6.8898]
[1750885010201,5.05452394,145.09,145.06,6.8898]
[1750885010703,5.05452394,145.09,145.03,4.35149551]
[1750885010897,4.35149551,145.08,145.01,39.87149551]
[1750885011295,11.24069551,145.08,145.04,6.8907]
[1750885011497,11.24069551,145.08,145.01,39.87149551]
[1750885011800,16.29521945,145.08,145.01,39.87149551]
[1750885012002,641.11267134,145.14,145.06,4.35207254]
[1750885012202,9.39646742,145.13,145.06,4.35207254]
[1750885012404,5.05667778,145.12,145.09,6.8883]
[1750885012606,5.05667778,145.11,145.09,6.8883]
[1750885012805,5.05667778,145.12,145.09,6.8883]
[1750885013316,5.05775284,145.12,145.09,6.8883]
[1750885013894,11.23957254,145.12,145.08,6.8889]
[1750885014204,5.07816876,145.11,145.04,4.35207254]
[1750885014404,40.57816876,145.11,145.04,4.35207254]
[1750885014607,40.57816876,145.11,145.08,6.8887]
[1750885015505,35.5,145.11,145.08,6.8887]
[1750885015908,40.57931242,145.11,145.08,6.8887]
[1750885016111,35.5,145.11,145.09,6.8885]
[1750885016301,40.57929104,145.11,145.09,6.8885]
[1750885016502,40.57873751,145.11,145.09,6.8885]
[1750885016698,35.5,145.11,145.09,6.8885]
[1750885017515,35.5,145.11,145.03,11.32477254]
[1750885017817,40.57967393,145.11,145.03,11.32477254]
[1750885018203,47.46767393,145.11,145.07,6.8893]
[1750885018707,5.6405988,145.14,145.07,4.35023367]
[1750885019210,6.8872,145.12,145.08,6.8889]
[1750885019402,47.46550816,145.12,145.06,39.85023367]
[1750885019603,35.5,145.12,145.06,39.85023367]
[1750885019804,40.577443,145.12,145.06,39.85023367]
[1750885019999,5.077443,145.13,145.06,35.5]
[1750885020205,5.6405988,145.14,145.12,4.34798859]
[1750885020404,5.6405988,145.14,145.13,6.8867]
[1750885021508,6.8872,145.12,145.06,62.0]
[1750885021707,35.5,145.11,145.07,4.34798859]
[1750885022115,35.5,145.11,145.09,6.8881]
[1750885022506,35.5,145.11,145.07,4.34798859]
[1750885022906,35.5,145.11,145.05,4.34798859]
[1750885023108,35.5,145.11,145.08,6.8888]
[1750885023307,42.388,145.11,145.08,6.8888]
[1750885023514,35.5,145.11,145.07,6.8894]
[1750885023700,4.34798859,145.1,145.03,11.32068859]
[1750885024209,35.5,145.11,145.06,6.8899]
[1750885024210,6.8888,145.09,145.06,6.8899]
[1750885024801,35.5,145.11,144.95,48.03454596]
[1750885025008,142.49807516,145.1,144.97,11.9082252]
[1750885025217,7.2575252,145.07,144.97,11.9082252]
[1750885025515,35.5,145.06,145.03,6.8913]
[1750885025814,42.39,145.06,145.03,6.8913]
[1750885026715,6.8905,145.05,145.02,6.8918]
[1750885027017,6.8905,145.05,144.99,7.2575252]
[1750885027018,35.5,145.06,144.97,11.9082252]
[1750885027309,6.8912,145.04,144.97,11.9082252]
[1750885028117,6.8912,145.04,145.01,6.8923]
[1750885028908,6.8915,145.03,145.0,6.8926]
[1750885029104,35.5,145.02,144.97,2.2814]
[1750885029315,35.5,145.02,145.01,6.8924]
[1750885030820,136.96,145.1,145.01,6.8924]
[1750885030821,2.329,145.12,145.01,49.65310423]
[1750885031012,41.1405988,145.14,145.02,4.7226]
[1750885031203,41.1405988,145.14,145.07,7.24820413]
[1750885031604,41.1405988,145.14,145.13,6.8867]
[1750885031821,5.6405988,145.14,145.13,6.8867]
[1750885032115,42.4405988,145.14,145.13,6.8867]